fUSD/lending_fUSD_20250906
["ID","MTS","AMOUNT","RATE_DAILY","PERIOD"]
[383925087,1757172731845,-410.93,0.00037808,8]
[383925088,1757172731855,-400.0,0.00037808,8]
[383925089,1757172731864,-400.0,0.00037808,8]
[383925090,1757172731874,-164.915259,0.00037808,30]
[383925091,1757172731884,-164.915259,0.00037808,30]
[383925092,1757172731894,-164.915259,0.00037808,30]
[383925093,1757172731904,-164.915255,0.00037808,30]
[383925094,1757172731913,-330.67233872,0.00037808,8]
[383925095,1757172731923,-400.0,0.00037808,8]
[383925096,1757172731932,-400.0,0.00037808,8]
[383925097,1757172731941,-151.0,0.00037808,30]
[383925098,1757172731952,-151.0,0.00037808,30]
[383925099,1757172731962,-400.0,0.00037808,8]
[383925100,1757172731971,-534.8487228,0.00037808,8]
[383925101,1757172731981,-400.0,0.00037808,8]
[383925102,1757172731990,-400.0,0.00037808,8]
[383925103,1757172732000,-400.0,0.00037808,8]
[383925104,1757172732009,-512.09,0.00037808,8]
[383925105,1757172732019,-400.0,0.00037808,8]
[383925106,1757172732028,-400.0,0.00037808,8]
[383925107,1757172732038,-400.0,0.00037808,8]
[383925108,1757172732047,-400.0,0.00037808,8]
[383925109,1757172732057,-400.0,0.00037808,8]
[383925110,1757172732067,-400.0,0.00037808,8]
[383925111,1757172732077,-195.83440913,0.00037808,8]
[383925112,1757172732087,-400.0,0.00037808,8]
[383925113,1757172732096,-520.21,0.00037808,8]
[383925114,1757172732106,-400.0,0.00037808,8]
[383925115,1757172732116,-400.0,0.00037808,8]
[383925116,1757172732126,-400.0,0.00037808,8]
[383925117,1757172732136,-400.0,0.00037808,8]
[383925118,1757172732146,-400.0,0.00037808,8]
[383925119,1757172732156,-400.0,0.00037808,8]
[383925120,1757172732165,-400.0,0.00037808,8]
[383925121,1757172732175,-400.0,0.00037808,8]
[383925122,1757172732184,-400.0,0.00037808,8]
[383925123,1757172732193,-400.0,0.00037808,8]
[383925124,1757172732203,-400.0,0.00037808,8]
[383925125,1757172732214,-400.0,0.00037808,8]
[383925126,1757172732223,-400.0,0.00037808,8]
[383925127,1757172732233,-435.2927154,0.00037808,8]
[383925128,1757172732243,-400.0,0.00037808,8]
[383925129,1757172732252,-710.35,0.00037808,120]
[383925130,1757172732263,-400.0,0.00037808,8]
[383925131,1757172732274,-400.0,0.00037808,8]
[383925132,1757172732285,-400.0,0.00037808,8]
[383925133,1757172732295,-805.82,0.00037808,8]
[383925134,1757172732305,-400.0,0.00037808,8]
[383925135,1757172732315,-400.0,0.00037808,8]
[383925136,1757172732325,-400.0,0.00037808,8]
[383925137,1757172732335,-400.0,0.00037808,8]
[383925138,1757172732346,-400.0,0.00037808,8]
[383925139,1757172732356,-400.0,0.00037808,8]
[383925140,1757172732366,-400.0,0.00037808,8]
[383925141,1757172732376,-4029.69,0.00037808,5]
[383925142,1757172732388,-400.0,0.00037808,8]
[383925143,1757172732397,-400.0,0.00037808,8]
[383925144,1757172732407,-400.0,0.00037808,8]
[383925145,1757172732418,-597.53,0.00037808,8]
[383925146,1757172732428,-477.22,0.00037808,8]
[383925147,1757172732439,-400.0,0.00037808,8]
[383925148,1757172732449,-400.0,0.00037808,8]
[383925149,1757172732459,-400.0,0.00037808,8]
[383925150,1757172732469,-1011.87,0.00037808,8]
[383925151,1757172732478,-400.0,0.00037808,8]
[383925152,1757172732488,-400.0,0.00037808,8]
[383925153,1757172732498,-400.0,0.00037808,8]
[383925154,1757172732508,-400.0,0.00037808,8]
[383925155,1757172732518,-462.37171985,0.00037808,8]
[383925156,1757172732528,-400.0,0.00037808,8]
[383925157,1757172732538,-400.0,0.00037808,8]
[383925158,1757172732548,-400.0,0.00037808,8]
[383925159,1757172732557,-400.0,0.00037808,8]
[383925160,1757172732567,-897.77,0.00037808,8]
[383925161,1757172732577,-400.0,0.00037808,8]
[383925162,1757172732586,-400.0,0.00037808,8]
[383925163,1757172732596,-400.0,0.00037808,8]
[383925164,1757172732606,-400.0,0.00037808,8]
[383925165,1757172732616,-400.0,0.00037808,8]
[383925166,1757172732625,-478.1,0.00037808,8]
[383925167,1757172732634,-400.0,0.00037808,8]
[383925168,1757172732644,-400.0,0.00037808,8]
[383925169,1757172732654,-590.89,0.00037808,8]
[383925170,1757172732663,-254.78282067,0.00037808,8]
[383925171,1757172732673,-400.0,0.00037808,8]
[383925172,1757172732683,-400.0,0.00037808,8]
[383925173,1757172732691,-400.0,0.00037808,8]
[383925174,1757172732700,-400.0,0.00037808,8]
[383925175,1757172732710,-400.0,0.00037808,8]
[383925176,1757172732720,-400.0,0.00037808,8]
[383925177,1757172732729,-400.0,0.00037808,8]
[383925178,1757172732739,-440.85,0.00037808,8]
[383925179,1757172732750,-440.62,0.00037808,8]
[383925180,1757172732760,-400.0,0.00037808,8]
[383925181,1757172732770,-400.0,0.00037808,8]
[383925182,1757172732779,-400.0,0.00037808,8]
[383925183,1757172732790,-400.0,0.00037808,8]
[383925184,1757172732800,-400.0,0.00037808,8]
[383925185,1757172732811,-400.0,0.00037808,8]
[383925186,1757172732822,-501.64318571,0.00037808,8]
[383925187,1757172732833,-1063.0,0.00037808,8]
[383925188,1757172732844,-400.0,0.00037808,8]
[383925189,1757172732853,-400.9,0.00037808,8]
[383925190,1757172732862,-400.0,0.00037808,8]
[383925191,1757172732871,-400.0,0.00037808,8]
[383925192,1757172732880,-675.45,0.00037808,8]
[383925193,1757172732889,-482.04,0.00037808,8]
[383925194,1757172732898,-563.8,0.00037808,8]
[383925195,1757172732908,-400.0,0.00037808,8]
[383925196,1757172732917,-1019.63,0.00037808,8]
[383925197,1757172732927,-436.24,0.00037808,8]
[383925198,1757172732936,-454.0,0.00037808,8]
[383925199,1757172732945,-400.0,0.00037808,8]
[383925200,1757172732955,-400.0,0.00037808,8]
[383925201,1757172732965,-400.0,0.00037808,8]
[383925202,1757172732974,-400.0,0.00037808,8]
[383925203,1757172732983,-400.0,0.00037808,8]
[383925204,1757172732993,-400.0,0.00037808,8]
[383925205,1757172733003,-703.69,0.00037808,8]
[383925206,1757172733012,-400.0,0.00037808,8]
[383925207,1757172733021,-400.0,0.00037808,8]
[383925208,1757172733030,-400.0,0.00037808,8]
[383925209,1757172733040,-400.0,0.00037808,8]
[383925210,1757172733049,-400.0,0.00037808,8]
[383925211,1757172733058,-400.0,0.00037808,8]
[383925212,1757172733067,-400.0,0.00037808,8]
[383925213,1757172733077,-400.0,0.00037808,8]
[383925214,1757172733086,-407.35,0.00037808,8]
[383925215,1757172733096,-400.0,0.00037808,8]
[383925216,1757172733105,-400.0,0.00037808,8]
[383925217,1757172733115,-400.0,0.00037808,8]
[383925218,1757172733124,-400.0,0.00037808,8]
[383925219,1757172733133,-400.0,0.00037808,8]
[383925220,1757172733143,-400.0,0.00037808,8]
[383925221,1757172733152,-400.0,0.00037808,8]
[383925222,1757172733162,-400.0,0.00037808,8]
[383925223,1757172733171,-400.0,0.00037808,8]
[383925224,1757172733180,-480.23,0.00037808,8]
[383925225,1757172733189,-400.0,0.00037808,8]
[383925226,1757172733198,-400.0,0.00037808,8]
[383925227,1757172733207,-400.0,0.00037808,8]
[383925228,1757172733216,-400.0,0.00037808,8]
[383925229,1757172733226,-512.18,0.00037808,8]
[383925230,1757172733235,-400.0,0.00037808,8]
[383925231,1757172733245,-590.96,0.00037808,8]
[383925232,1757172733254,-400.0,0.00037808,8]
[383925233,1757172733267,-400.0,0.00037808,8]
[383925234,1757172733277,-400.0,0.00037808,8]
[383925235,1757172733287,-400.0,0.00037808,8]
[383925236,1757172733296,-400.0,0.00037808,8]
[383925237,1757172733306,-400.0,0.00037808,8]
[383925238,1757172733316,-400.0,0.00037808,8]
[383925239,1757172733325,-400.0,0.00037808,8]
[383925240,1757172733335,-450.89385266,0.00037808,8]
[383925241,1757172733346,-400.0,0.00037808,8]
[383925242,1757172733356,-400.0,0.00037808,8]
[383925243,1757172733365,-400.0,0.00037808,8]
[383925244,1757172733374,-400.0,0.00037808,8]
[383925245,1757172733383,-400.0,0.00037808,8]
[383925246,1757172733393,-400.0,0.00037808,8]
[383925247,1757172733402,-400.0,0.00037808,8]
[383925248,1757172733413,-400.0,0.00037808,8]
[383925249,1757172733422,-608.37,0.00037808,8]
[383925250,1757172733432,-434.46,0.00037808,8]
[383925251,1757172733441,-400.0,0.00037808,8]
[383925252,1757172733451,-400.0,0.00037808,8]
[383925253,1757172733461,-598.33,0.00037808,8]
[383925254,1757172733470,-400.0,0.00037808,8]
[383925255,1757172733479,-509.06,0.00037808,8]
[383925256,1757172733489,-235.83034727,0.00037808,8]
[383925257,1757172733498,-502.57,0.00037808,8]
[383925258,1757172733507,-400.0,0.00037808,8]
[383925259,1757172733517,-400.0,0.00037808,8]
[383925260,1757172733527,-435.86,0.00037808,8]
[383925261,1757172733536,-1534.12,0.00037808,8]
[383925262,1757172733547,-400.0,0.00037808,8]
[383925263,1757172733557,-400.0,0.00037808,8]
[383925264,1757172733567,-2648.5,0.00037808,8]
[383925265,1757172733577,-400.0,0.00037808,8]
[383925266,1757172733587,-1732.85,0.00037808,8]
[383925267,1757172733596,-400.0,0.00037808,8]
[383925268,1757172733606,-400.0,0.00037808,8]
[383925269,1757172733615,-400.0,0.00037808,8]
[383925270,1757172733625,-495.11,0.00037808,8]
[383925271,1757172733635,-400.0,0.00037808,8]
[383925272,1757172733645,-1089.37,0.00037808,8]
[383925273,1757172733654,-400.0,0.00037808,8]
[383925274,1757172733664,-400.0,0.00037808,8]
[383925275,1757172733674,-400.0,0.00037808,8]
[383925276,1757172733684,-409.91,0.00037808,8]
[383925277,1757172733694,-2279.31,0.00037808,8]
[383925278,1757172733704,-400.0,0.00037808,8]
[383925279,1757172733714,-400.0,0.00037808,8]
[383925280,1757172733723,-1049.01,0.00037808,8]
[383925281,1757172733734,-400.0,0.00037808,8]
[383925282,1757172733743,-400.0,0.00037808,8]
[383925283,1757172733753,-457.92,0.00037808,8]
[383925284,1757172733763,-427.44,0.00037808,8]
[383925285,1757172733772,-400.0,0.00037808,8]
[383925286,1757172733782,-2989.69,0.00037808,8]
[383925287,1757172733791,-303.621186,0.00037808,8]
[383925288,1757172733801,-255.724684,0.00037808,8]
[383925289,1757172733811,-479.57,0.00037808,8]
[383925290,1757172733823,-571.91,0.00037808,8]
[383925291,1757172733833,-2140.52,0.00037808,8]
[383925292,1757172733842,-400.0,0.00037808,8]
[383925293,1757172733854,-400.0,0.00037808,8]
[383925294,1757172733864,-756.95,0.00037808,8]
[383925295,1757172733874,-400.0,0.00037808,8]
[383925296,1757172733884,-400.0,0.00037808,8]
[383925297,1757172733894,-400.0,0.00037808,8]
[383925298,1757172733903,-400.0,0.00037808,8]
[383925299,1757172733913,-673.56,0.00037808,8]
[383925300,1757172733924,-400.0,0.00037808,8]
[383925301,1757172733934,-423.16302,0.00037808,8]
[383925302,1757172733943,-400.0,0.00037808,8]
[383925303,1757172733954,-1233.86,0.00037808,8]
[383925304,1757172733964,-945.88,0.00037808,8]
[383925305,1757172733973,-419.78,0.00037808,8]
[383925306,1757172733983,-604.44,0.00037808,8]
[383925307,1757172733993,-992.17,0.00037808,8]
[383925308,1757172734003,-400.0,0.00037808,8]
[383925309,1757172734013,-400.0,0.00037808,8]
[383925310,1757172734023,-1045.05,0.00037808,8]
[383925311,1757172734033,-429.91,0.00037808,8]
[383925312,1757172734043,-400.0,0.00037808,8]
[383925313,1757172734053,-400.0,0.00037808,8]
[383925314,1757172734062,-400.0,0.00037808,8]
[383925315,1757172734072,-413.34,0.00037808,8]
[383925316,1757172734082,-400.0,0.00037808,8]
[383925317,1757172734092,-400.0,0.00037808,8]
[383925318,1757172734102,-400.0,0.00037808,8]
[383925319,1757172734112,-400.0,0.00037808,8]
[383925320,1757172734121,-790.23,0.00037808,8]
[383925321,1757172734132,-400.0,0.00037808,8]
[383925322,1757172734141,-2436.64,0.00037808,8]
[383925323,1757172734151,-400.0,0.00037808,8]
[383925324,1757172734160,-1094.56,0.00037808,8]
[383925325,1757172734170,-400.0,0.00037808,8]
[383925326,1757172734180,-730.61,0.00037808,8]
[383925327,1757172734190,-400.0,0.00037808,8]
[383925328,1757172734199,-535.79,0.00037808,8]
[383925329,1757172734209,-651.47,0.00037808,8]
[383925330,1757172734219,-418.47,0.00037808,8]
[383925331,1757172734230,-2213.66,0.00037808,8]
[383925332,1757172734239,-652.06,0.00037808,8]
[383925333,1757172734249,-458.46,0.00037808,8]
[383925334,1757172734259,-455.66,0.00037808,8]
[383925335,1757172734273,-400.0,0.00037808,8]
[383925336,1757172734282,-453.6,0.00037808,8]
[383925337,1757172734291,-400.0,0.00037808,8]
[383925338,1757172734300,-400.0,0.00037808,8]
[383925339,1757172734310,-7000.0,0.00037808,2]
[383925340,1757172734320,-1828.0,0.00037808,8]
[383925341,1757172734330,-644.18,0.00037808,8]
[383925342,1757172734340,-1117.06,0.00037808,8]
[383925343,1757172734349,-400.0,0.00037808,8]
[383925344,1757172734360,-553.32,0.00037808,8]
[383925345,1757172734370,-1820.35,0.00037808,8]
[383925346,1757172734380,-400.0,0.00037808,8]
[383925347,1757172734390,-400.0,0.00037808,8]
[383925348,1757172734399,-671.63,0.00037808,8]
[383925349,1757172734408,-400.0,0.00037808,8]
[383925350,1757172734419,-1362.35,0.00037808,8]
[383925351,1757172734429,-1175.85,0.00037808,8]
[383925352,1757172734439,-400.0,0.00037808,8]
[383925353,1757172734449,-631.4,0.00037808,8]
[383925354,1757172734459,-400.0,0.00037808,8]
[383925355,1757172734469,-400.0,0.00037808,8]
[383925356,1757172734479,-400.0,0.00037808,8]
[383925357,1757172734489,-400.0,0.00037808,8]
[383925358,1757172734499,-400.0,0.00037808,8]
[383925359,1757172734508,-400.0,0.00037808,8]
[383925360,1757172734518,-400.0,0.00037808,8]
[383925361,1757172734527,-1093.83,0.00037808,8]
[383925362,1757172734536,-400.0,0.00037808,8]
[383925363,1757172734546,-490.39,0.00037808,8]
[383925364,1757172734556,-400.0,0.00037808,8]
[383925365,1757172734566,-400.0,0.00037808,8]
[383925366,1757172734577,-543.1,0.00037808,8]
[383925367,1757172734587,-428.7,0.00037808,8]
[383925368,1757172734596,-400.0,0.00037808,8]
[383925369,1757172734606,-400.0,0.00037808,8]
[383925370,1757172734615,-600.99,0.00037808,8]
[383925371,1757172734626,-515.24,0.00037808,8]
[383925372,1757172734635,-504.99015999,0.00037808,8]
[383925373,1757172734644,-400.0,0.00037808,8]
[383925374,1757172734654,-533.89,0.00037808,8]
[383925375,1757172734664,-400.0,0.00037808,8]
[383925376,1757172734674,-501.41,0.00037808,8]
[383925377,1757172734683,-868.68,0.00037808,8]
[383925378,1757172734694,-400.0,0.00037808,8]
[383925379,1757172734703,-472.9,0.00037808,8]
[383925380,1757172734721,-966.02,0.00037808,8]
[383925381,1757172734731,-400.0,0.00037808,8]
[383925382,1757172734741,-466.62,0.00037808,8]
[383925383,1757172734751,-1411.12,0.00037808,8]
[383925384,1757172734760,-400.0,0.00037808,8]
[383925385,1757172734770,-578.15,0.00037808,8]
[383925386,1757172734779,-400.0,0.00037808,8]
[383925387,1757172734789,-400.0,0.00037808,8]
[383925388,1757172734799,-400.0,0.00037808,8]
[383925389,1757172734808,-1435.63,0.00037808,8]
[383925390,1757172734817,-400.0,0.00037808,8]
[383925391,1757172734827,-788.1,0.00037808,8]
[383925392,1757172734836,-619.13,0.00037808,8]
[383925393,1757172734847,-400.0,0.00037808,8]
[383925394,1757172734857,-619.22,0.00037808,8]
[383925395,1757172734867,-400.0,0.00037808,8]
[383925396,1757172734876,-3490.54,0.00037808,8]
[383925397,1757172734886,-2760.38,0.00037808,8]
[383925398,1757172734896,-435.82,0.00037808,8]
[383925399,1757172734906,-400.0,0.00037808,8]
[383925400,1757172734916,-415.83,0.00037808,8]
[383925401,1757172734925,-400.0,0.00037808,8]
[383925402,1757172734935,-424.35,0.00037808,8]
[383925403,1757172734945,-2385.83,0.00037808,8]
[383925404,1757172734957,-400.0,0.00037808,8]
[383925405,1757172734968,-574.35,0.00037808,8]
[383925406,1757172734978,-400.0,0.00037808,8]
[383925407,1757172734988,-401.73,0.00037808,8]
[383925408,1757172734998,-400.0,0.00037808,8]
[383925409,1757172735008,-400.0,0.00037808,8]
[383925410,1757172735018,-1126.95,0.00037808,8]
[383925411,1757172735027,-491.37,0.00037808,8]
[383925412,1757172735037,-400.0,0.00037808,8]
[383925413,1757172735047,-4593.42,0.00037808,8]
[383925414,1757172735057,-1283.79,0.00037808,8]
[383925415,1757172735067,-400.0,0.00037808,8]
[383925416,1757172735076,-574.59,0.00037808,8]
[383925417,1757172735086,-400.0,0.00037808,8]
[383925418,1757172735096,-400.0,0.00037808,8]
[383925419,1757172735106,-487.5,0.00037808,8]
[383925420,1757172735115,-400.0,0.00037808,8]
[383925421,1757172735125,-400.0,0.00037808,8]
[383925422,1757172735135,-400.0,0.00037808,8]
[383925423,1757172735144,-400.0,0.00037808,8]
[383925424,1757172735154,-400.0,0.00037808,8]
[383925425,1757172735163,-531.23,0.00037808,8]
[383925426,1757172735173,-400.0,0.00037808,8]
[383925427,1757172735182,-400.0,0.00037808,8]
[383925428,1757172735192,-425.4,0.00037808,8]
[383925429,1757172735202,-400.0,0.00037808,8]
[383925430,1757172735330,-161.97,0.00037808,120]
[383925431,1757172735341,-1425.0,0.00037811,2]
[383925432,1757172735351,-2000.0,0.00037816,5]
[383925433,1757172735361,-1467.92862254,0.00037816,5]
[383925434,1757172735371,-364.23,0.00037832,60]
[383925435,1757172735381,-500.0,0.00037832,2]
[383925436,1757172735391,-514.58154327,0.00037832,2]
[383925437,1757172735401,-159.25742452,0.00037832,2]
[383925438,1757172735410,-1425.0,0.00037844,2]
[383925439,1757172735420,-11334.0,0.0003786,30]
[383925440,1757172735430,-758.75462239,0.0003786,2]
[383925441,1757172735440,-244.48992135,0.00037864,5]
[383925442,1757172735450,-1259.93198409,0.0003787,2]
[383925443,1757172735459,-200.0,0.0003787,2]
[383925444,1757172735469,-151.0,0.0003787,2]
[383925445,1757172735479,-200.0,0.0003787,2]
[383925446,1757172735488,-155.85193134,0.0003787,14]
[383925447,1757172735498,-500.0,0.00037874,2]
[383925448,1757172735508,-150.0,0.00037874,2]
[383925449,1757172735517,-150.0,0.00037874,2]
[383925450,1757172735527,-500.0,0.00037874,2]
[383925451,1757172735537,-500.0,0.00037874,2]
[383925452,1757172735547,-204.55335165,0.00037874,2]
[383925453,1757172735556,-500.0,0.00037874,2]
[383925454,1757172735566,-150.0,0.00037874,2]
[383925455,1757172735576,-500.0,0.00037874,2]
[383925456,1757172735586,-500.0,0.00037874,2]
[383925457,1757172735596,-500.0,0.00037874,2]
[383925458,1757172735606,-150.0,0.00037874,2]
[383925459,1757172735616,-500.0,0.00037874,2]
[383925460,1757172735625,-150.0,0.00037874,2]
[383925461,1757172735635,-500.0,0.00037874,2]
[383925462,1757172735645,-150.0,0.00037874,2]
[383925463,1757172735655,-500.0,0.00037874,2]
[383925464,1757172735665,-150.0,0.00037874,2]
[383925465,1757172735675,-1801.05,0.00037917,14]
[383925466,1757172735685,-168.0,0.00037923,7]
[383925467,1757172735695,-500.0,0.00037926,8]
[383925468,1757172735706,-500.0,0.00037926,8]
[383925469,1757172735716,-500.0,0.00037926,2]
[383925470,1757172735726,-151.0,0.00037927,30]
[383925471,1757172735736,-225.23828,0.00037927,30]
[383925472,1757172735747,-225.23828,0.00037927,30]
[383925473,1757172735757,-225.23828,0.00037927,30]
[383925474,1757172735767,-225.23828,0.00037927,30]
[383925475,1757172735777,-228.722131,0.00037927,30]
[383925476,1757172735786,-151.0,0.00037927,30]
[383925477,1757172735796,-151.0,0.00037927,30]
[383925478,1757172735806,-151.0,0.00037927,30]
[383925479,1757172735815,-151.0,0.00037927,30]
[383925480,1757172735826,-99847.37061562,0.00037928,15]
[383925481,1757172736182,-160.0,0.00022077,14]
[383925482,1757172736192,-400.0,0.00035616,8]
[383925483,1757172736202,-3802.06127714,0.00037928,15]
[383925484,1757172736211,-199.0,0.00037944,13]
[383925485,1757172736221,-151.0,0.00037959,2]
[383925486,1757172736231,-968.42913503,0.00037977,2]
[383925487,1757172736243,-456.57086497,0.00037977,2]
[383925488,1757172736252,-1637.12807444,0.00037982,2]
[383925489,1757172736262,-1425.0,0.00037985,2]
[383925490,1757172736275,-187.29362232,0.00038,30]
[383925491,1757172736584,-259.24045864,0.00038,30]
[383925492,1757172736595,-3010.21128815,0.00038,120]
[383925493,1757172736605,-154.0,0.00038,120]
[383925494,1757172736615,-1996.0,0.00038,7]
[383925495,1757172736625,-1000.0,0.00038,7]
[383925496,1757172736635,-151.0,0.00038,120]
[383925497,1757172736645,-3677.18733155,0.00038,2]
[383925498,1757172736658,-10826.83035002,0.00038,2]
[383925499,1757172736669,-16488.84065,0.00038,2]
[383925500,1757172736681,-51901.97505347,0.00038,2]
[383925501,1757172736940,-135.07331157,0.00038,2]
[383925502,1757172737943,-160.0,0.00022077,14]
[383925503,1757172737953,-160.0,0.00022077,14]
[383925504,1757172737963,-160.0,0.00022077,14]
[383925505,1757172737973,-160.0,0.00022077,14]
[383925506,1757172737983,-160.0,0.00022077,14]
[383925507,1757172737993,-160.0,0.00022077,14]
[383925508,1757172738002,-160.0,0.00022077,14]
[383925509,1757172738012,-80.0,0.00029253,30]
[383925510,1757172738049,-0.21510734,0.00029253,30]
[383925511,1757172738081,-92.81489266,0.00029253,30]
[383925512,1757172738091,-173.03,0.00030597,30]
[383925513,1757172738100,-173.03,0.00031942,30]
[383925514,1757172738109,-334.819798,0.00032877,7]
[383925515,1757172738118,-334.819798,0.00032877,7]
[383925516,1757172738128,-334.819798,0.00032877,7]
[383925517,1757172738136,-334.819798,0.00032877,7]
[383925518,1757172738146,-334.819798,0.00032877,7]
[383925519,1757172738156,-334.819798,0.00032877,7]
[383925520,1757172738165,-334.819798,0.00032877,7]
[383925521,1757172738175,-334.819798,0.00032877,7]
[383925522,1757172738185,-334.819798,0.00032877,7]
[383925523,1757172738194,-173.03,0.00033286,30]
[383925524,1757172738204,-173.03,0.0003463,30]
[383925525,1757172738213,-400.0,0.00035616,8]
[383925526,1757172738223,-405.91120307,0.00035616,8]
[383925527,1757172738233,-62.80496289,0.00035616,8]
[383925528,1757172738759,-81.91196929,0.00022077,14]
[383925529,1757172738771,-78.08803071,0.00022077,14]
[383925530,1757172738781,-160.0,0.00022077,14]
[383925531,1757172738791,-160.0,0.00022077,14]
[383925532,1757172738801,-160.0,0.00022077,14]
[383925533,1757172738810,-160.0,0.00022077,14]
[383925534,1757172738820,-160.0,0.00022077,14]
[383925535,1757172738829,-160.0,0.00022077,14]
[383925536,1757172738839,-334.819798,0.00032877,7]
[383925537,1757172738848,-334.819798,0.00032877,7]
[383925538,1757172738858,-334.819804,0.00032877,7]
[383925539,1757172738868,-337.19503711,0.00035616,8]
[383925540,1757172738877,-403.02187662,0.00035616,8]
[383925541,1757172738887,-400.0,0.00035616,8]
[383925542,1757172738896,-400.0,0.00035616,8]
[383925543,1757172738906,-400.0,0.00035889,8]
[383925544,1757172738916,-400.0,0.00035889,8]
[383925545,1757172738926,-14.43565556,0.00035889,8]
[383925546,1757172738938,-385.56434444,0.00035889,8]
[383925547,1757172738948,-400.0,0.00035889,8]
[383925548,1757172738958,-400.0,0.00035889,8]
[383925549,1757172738968,-400.0,0.0003589,8]
[383925550,1757172738978,-400.0,0.0003589,8]
[383925551,1757172738988,-465.28,0.0003589,8]
[383925552,1757172738997,-400.0,0.0003589,8]
[383925553,1757172739007,-400.0,0.0003589,8]
[383925554,1757172739018,-173.03,0.00035975,60]
[383925555,1757172739028,-543.85378209,0.00036163,8]
[383925556,1757172739038,-400.0,0.00036163,8]
[383925557,1757172739048,-400.0,0.00036163,8]
[383925558,1757172739058,-400.0,0.00036163,8]
[383925559,1757172739068,-400.0,0.00036163,8]
[383925560,1757172739078,-400.0,0.00036164,8]
[383925561,1757172739088,-400.0,0.00036164,8]
[383925562,1757172739098,-400.0,0.00036164,8]
[383925563,1757172739108,-400.0,0.00036437,8]
[383925564,1757172739118,-400.0,0.00036437,8]
[383925565,1757172739128,-164.42,0.00036437,8]
[383925566,1757172739138,-400.0,0.00036438,8]
[383925567,1757172739148,-400.0,0.00036438,8]
[383925568,1757172739158,-400.0,0.00036711,8]
[383925569,1757172739168,-400.0,0.00036712,8]
[383925570,1757172739178,-400.0,0.00036712,8]
[383925571,1757172739188,-153.0,0.00036743,30]
[383925572,1757172739197,-153.0,0.00036743,30]
[383925573,1757172739207,-153.0,0.00036743,30]
[383925574,1757172739217,-153.0,0.00036743,30]
[383925575,1757172739227,-215.5325929,0.00036985,8]
[383925576,1757172739237,-400.0,0.00036986,8]
[383925577,1757172739247,-79.81566208,0.00036986,8]
[383925578,1757172742328,300.0,0.00024285,120]
[383925579,1757172742456,300.0,0.00024993,120]
[383925580,1757172742493,300.0,0.00028355,120]
[383925581,1757172742544,300.0,0.00028355,120]
[383925582,1757172742616,300.0,0.00028355,120]
[383925583,1757172759942,6153.53035032,0.00030137,120]
[383925584,1757172830734,350.0,0.0003,120]
[383925588,1757173125192,157.0,0.00013073,2]
[383925589,1757173125576,157.0,0.00015251,2]